fUST/lending_fUST_20250627
["ID","MTS","AMOUNT","RATE_DAILY","PERIOD"]
[368119238,1751029845729,-460.0,0.00020547,2]
[368119239,1751029845739,-807.46,0.00020547,2]
[368119240,1751029845748,-2217.11,0.00020547,2]
[368119241,1751029845757,-851.26,0.00020547,2]
[368119242,1751029845767,-1687.24,0.00020547,2]
[368119243,1751029845776,-464.33,0.00020547,2]
[368119244,1751029845785,-682.9,0.00020547,2]
[368119245,1751029845795,-201.22807331,0.00020547,2]
[368119246,1751029845805,-460.0,0.00020547,2]
[368119247,1751029845815,-460.0,0.00020547,2]
[368119248,1751029845824,-460.0,0.00020547,2]
[368119249,1751029845836,-460.0,0.00020547,2]
[368119250,1751029845845,-460.0,0.00020547,2]
[368119251,1751029845855,-460.0,0.00020547,2]
[368119252,1751029845864,-572.67,0.00020547,2]
[368119253,1751029845873,-626.65,0.00020547,2]
[368119254,1751029845884,-778.42,0.00020547,2]
[368119255,1751029845894,-1807.73,0.00020547,2]
[368119256,1751029845903,-2700.44,0.00020547,2]
[368119257,1751029845914,-460.0,0.00020547,2]
[368119258,1751029845924,-1046.99,0.00020547,2]
[368119259,1751029845934,-460.0,0.00020547,2]
[368119260,1751029845943,-1874.32,0.00020547,2]
[368119261,1751029845953,-460.0,0.00020547,2]
[368119262,1751029845962,-460.0,0.00020547,2]
[368119263,1751029845971,-438.07,0.00020547,2]
[368119264,1751029845980,-460.0,0.00020547,2]
[368119265,1751029845989,-1037.07,0.00020547,2]
[368119266,1751029845999,-460.0,0.00020547,2]
[368119267,1751029846008,-460.0,0.00020547,2]
[368119268,1751029846019,-627.06,0.00020547,2]
[368119269,1751029846032,-460.0,0.00020547,2]
[368119270,1751029846041,-460.0,0.00020547,2]
[368119271,1751029846051,-665.9,0.00020547,2]
[368119272,1751029846060,-460.0,0.00020547,2]
[368119273,1751029846070,-3786.78,0.00020547,2]
[368119274,1751029846079,-1216.38,0.00020547,2]
[368119275,1751029846088,-727.16,0.00020547,2]
[368119276,1751029846097,-581.14161172,0.00020547,2]
[368119277,1751029846107,-3017.37,0.00020547,2]
[368119278,1751029846116,-4525.56,0.00020547,2]
[368119279,1751029846125,-460.0,0.00020547,2]
[368119280,1751029846134,-515.06,0.00020547,2]
[368119281,1751029846144,-2147.92,0.00020547,2]
[368119282,1751029846153,-954.2,0.00020547,2]
[368119283,1751029846162,-848.16,0.00020547,2]
[368119284,1751029846171,-464.02,0.00020547,2]
[368119285,1751029846181,-460.0,0.00020547,2]
[368119286,1751029846190,-5421.31,0.00020547,2]
[368119287,1751029846199,-460.0,0.00020547,2]
[368119288,1751029846208,-581.27,0.00020547,2]
[368119289,1751029846217,-683.54,0.00020547,2]
[368119290,1751029846227,-157.976659,0.00020548,2]
[368119291,1751029846236,-828.22200964,0.000206,2]
[368119292,1751029846245,-3398.84,0.000206,2]
[368119293,1751029846255,-893.13575102,0.00020655,2]
[368119294,1751029846264,-10118.81432848,0.00020728,3]
[368119295,1751029846273,-500.0,0.00020772,2]
[368119296,1751029846283,-500.0,0.00020793,2]
[368119297,1751029846292,-5000.0,0.00020818,2]
[368119298,1751029846301,-346.61310875,0.00020821,2]
[368119299,1751029846311,-460.0,0.00020821,2]
[368119300,1751029846320,-237.34,0.00020821,2]
[368119301,1751029846331,-227.8609359,0.00020821,2]
[368119302,1751029846340,-460.0,0.00020821,2]
[368119303,1751029846350,-460.0,0.00020821,2]
[368119304,1751029846359,-460.0,0.00020821,2]
[368119305,1751029846368,-460.0,0.00020821,2]
[368119306,1751029846377,-234.08743595,0.00020821,2]
[368119307,1751029846386,-460.0,0.00020821,2]
[368119308,1751029846395,-460.0,0.00020821,2]
[368119309,1751029846405,-460.0,0.00020821,2]
[368119310,1751029846415,-460.0,0.00020821,2]
[368119311,1751029846424,-460.0,0.00020821,2]
[368119312,1751029846434,-962.79,0.00020821,2]
[368119313,1751029846443,-455.59,0.00020821,2]
[368119314,1751029846452,-460.0,0.00020821,2]
[368119315,1751029846461,-460.0,0.00020821,2]
[368119316,1751029846471,-460.0,0.00020821,2]
[368119317,1751029846480,-460.0,0.00020821,2]
[368119318,1751029846490,-582.56,0.00020821,2]
[368119319,1751029846499,-460.0,0.00020821,2]
[368119320,1751029846508,-500.0,0.00020821,2]
[368119321,1751029846517,-460.0,0.00020821,2]
[368119322,1751029846527,-460.0,0.00020821,2]
[368119323,1751029846536,-262.53552285,0.00020821,2]
[368119324,1751029846546,-460.0,0.00020821,2]
[368119325,1751029846556,-460.0,0.00020821,2]
[368119326,1751029846565,-460.0,0.00020821,2]
[368119327,1751029846575,-460.0,0.00020821,2]
[368119328,1751029846584,-460.0,0.00020821,2]
[368119329,1751029846593,-460.0,0.00020821,2]
[368119330,1751029846603,-545.2,0.00020821,2]
[368119331,1751029846612,-500.1760642,0.00020821,2]
[368119332,1751029846621,-460.0,0.00020821,2]
[368119333,1751029846630,-872.16,0.00020821,2]
[368119334,1751029846640,-490.28,0.00020821,2]
[368119335,1751029846649,-460.0,0.00020821,2]
[368119336,1751029846659,-460.0,0.00020821,2]
[368119337,1751029846668,-676.53,0.00020821,2]
[368119338,1751029846678,-3577.22,0.00020821,2]
[368119339,1751029846687,-1544.03,0.00020821,2]
[368119340,1751029846697,-460.0,0.00020821,2]
[368119341,1751029846706,-1861.18,0.00020821,2]
[368119342,1751029846715,-2946.71,0.00020821,2]
[368119343,1751029846724,-460.0,0.00020821,2]
[368119344,1751029846734,-6518.4,0.00020821,2]
[368119345,1751029846743,-460.0,0.00020821,2]
[368119346,1751029846752,-460.0,0.00020821,2]
[368119347,1751029846761,-1266.37,0.00020821,2]
[368119348,1751029846771,-1132.2,0.00020821,2]
[368119349,1751029846780,-460.0,0.00020821,2]
[368119350,1751029846789,-765.43,0.00020821,2]
[368119351,1751029846798,-460.0,0.00020821,2]
[368119352,1751029846808,-848.57,0.00020821,2]
[368119353,1751029846817,-460.0,0.00020821,2]
[368119354,1751029846827,-5598.03,0.00020821,2]
[368119355,1751029846839,-460.0,0.00020821,2]
[368119356,1751029846848,-807.46,0.00020821,2]
[368119357,1751029846857,-2217.11,0.00020821,2]
[368119358,1751029846868,-851.26,0.00020821,2]
[368119359,1751029846878,-1687.24,0.00020821,2]
[368119360,1751029846887,-464.33,0.00020821,2]
[368119361,1751029846897,-682.9,0.00020821,2]
[368119362,1751029846908,-485.34,0.00020821,2]
[368119363,1751029846918,-460.0,0.00020821,2]
[368119364,1751029846927,-460.0,0.00020821,2]
[368119365,1751029846936,-599.54,0.00020821,2]
[368119366,1751029846946,-473.97412517,0.00020821,2]
[368119367,1751029846956,-460.0,0.00020821,2]
[368119368,1751029846965,-626.65,0.00020821,2]
[368119369,1751029846975,-778.42,0.00020821,2]
[368119370,1751029846984,-1807.73,0.00020821,2]
[368119371,1751029846994,-2700.44,0.00020821,2]
[368119372,1751029847002,-460.0,0.00020821,2]
[368119373,1751029847011,-1046.99,0.00020821,2]
[368119374,1751029847021,-460.0,0.00020821,2]
[368119375,1751029847030,-1874.32,0.00020821,2]
[368119376,1751029847039,-460.0,0.00020821,2]
[368119377,1751029847048,-460.0,0.00020821,2]
[368119378,1751029847058,-460.0,0.00020821,2]
[368119379,1751029847067,-1037.07,0.00020821,2]
[368119380,1751029847077,-460.0,0.00020821,2]
[368119381,1751029847086,-627.06,0.00020821,2]
[368119382,1751029847095,-460.0,0.00020821,2]
[368119383,1751029847105,-460.0,0.00020821,2]
[368119384,1751029847114,-460.0,0.00020821,2]
[368119385,1751029847123,-665.9,0.00020821,2]
[368119386,1751029847132,-460.0,0.00020821,2]
[368119387,1751029847141,-3786.78,0.00020821,2]
[368119388,1751029847151,-1216.38,0.00020821,2]
[368119389,1751029847160,-727.16,0.00020821,2]
[368119390,1751029847169,-3017.37,0.00020821,2]
[368119391,1751029847179,-4525.56,0.00020821,2]
[368119392,1751029847188,-460.0,0.00020821,2]
[368119393,1751029847197,-515.06,0.00020821,2]
[368119394,1751029847206,-2147.92,0.00020821,2]
[368119395,1751029847215,-954.2,0.00020821,2]
[368119396,1751029847225,-848.16,0.00020821,2]
[368119397,1751029847234,-464.02,0.00020821,2]
[368119398,1751029847243,-460.0,0.00020821,2]
[368119399,1751029847252,-5421.31,0.00020821,2]
[368119400,1751029847262,-460.0,0.00020821,2]
[368119401,1751029847271,-683.54,0.00020821,2]
[368119402,1751029847280,-581.27,0.00020821,2]
[368119403,1751029847289,-1500.0,0.00020831,2]
[368119404,1751029847299,-620.0,0.00020881,2]
[368119405,1751029847308,-2161.0,0.00020886,2]
[368119406,1751029847317,-654.0,0.00020886,2]
[368119407,1751029847326,-406.0,0.00020886,2]
[368119408,1751029847336,-180.0,0.00020899,2]
[368119409,1751029847345,-420.0,0.00020899,2]
[368119410,1751029847355,-10118.81432848,0.00020934,4]
[368119411,1751029847364,-33711.69113565,0.00021,2]
[368119412,1751029847373,-151.365861,0.00021,2]
[368119413,1751029847382,-151.0,0.00021,2]
[368119414,1751029847391,-366.1147399,0.00021014,2]
[368119415,1751029847400,-620.0,0.00021015,2]
[368119416,1751029847502,-153.0,0.00021055,2]
[368119417,1751029847513,-153.0,0.00021055,2]
[368119418,1751029847523,-151.0,0.00021068,2]
[368119419,1751029847532,-151.361844,0.00021068,2]
[368119420,1751029847541,-1059.846132,0.00021068,2]
[368119421,1751029847550,-1059.846132,0.00021068,2]
[368119422,1751029847559,-1007.21087766,0.00021068,2]
[368119423,1751029847568,-1500.0,0.00021068,2]
[368119424,1751029847577,-460.0,0.00021095,2]
[368119425,1751029847587,-460.0,0.00021095,2]
[368119426,1751029847596,-512.06,0.00021095,2]
[368119427,1751029847605,-460.0,0.00021095,2]
[368119428,1751029847615,-460.0,0.00021095,2]
[368119429,1751029847624,-257.14,0.00021095,2]
[368119430,1751029847635,-460.0,0.00021095,2]
[368119431,1751029847645,-460.0,0.00021095,2]
[368119432,1751029847654,-460.0,0.00021095,2]
[368119433,1751029847663,-460.0,0.00021095,2]
[368119434,1751029847673,-962.79,0.00021095,2]
[368119435,1751029847682,-460.0,0.00021095,2]
[368119436,1751029847691,-460.0,0.00021095,2]
[368119437,1751029847700,-460.0,0.00021095,2]
[368119438,1751029847709,-460.0,0.00021095,2]
[368119439,1751029847718,-460.0,0.00021095,2]
[368119440,1751029847728,-460.0,0.00021095,2]
[368119441,1751029847737,-460.0,0.00021095,2]
[368119442,1751029847746,-588.62950516,0.00021095,2]
[368119443,1751029847755,-460.0,0.00021095,2]
[368119444,1751029847765,-460.0,0.00021095,2]
[368119445,1751029847774,-460.0,0.00021095,2]
[368119446,1751029847784,-460.0,0.00021095,2]
[368119447,1751029847794,-460.0,0.00021095,2]
[368119448,1751029847803,-460.0,0.00021095,2]
[368119449,1751029847812,-872.16,0.00021095,2]
[368119450,1751029847821,-490.28,0.00021095,2]
[368119451,1751029847831,-460.0,0.00021095,2]
[368119452,1751029847843,-151.0,0.00021095,2]
[368119453,1751029847852,-460.0,0.00021095,2]
[368119454,1751029847862,-151.0,0.00021095,2]
[368119455,1751029847871,-676.53,0.00021095,2]
[368119456,1751029847881,-3577.22,0.00021095,2]
[368119457,1751029847891,-1544.03,0.00021095,2]
[368119458,1751029847900,-460.0,0.00021095,2]
[368119459,1751029847911,-1861.18,0.00021095,2]
[368119460,1751029847921,-2946.71,0.00021095,2]
[368119461,1751029847930,-460.0,0.00021095,2]
[368119462,1751029847940,-6518.4,0.00021095,2]
[368119463,1751029847949,-460.0,0.00021095,2]
[368119464,1751029847958,-1266.37,0.00021095,2]
[368119465,1751029847968,-460.0,0.00021095,2]
[368119466,1751029847977,-460.0,0.00021095,2]
[368119467,1751029847987,-1132.2,0.00021095,2]
[368119468,1751029847996,-765.43,0.00021095,2]
[368119469,1751029848006,-460.0,0.00021095,2]
[368119470,1751029848015,-848.57,0.00021095,2]
[368119471,1751029848024,-460.0,0.00021095,2]
[368119472,1751029848034,-5598.03,0.00021095,2]
[368119473,1751029848043,-460.0,0.00021095,2]
[368119474,1751029848053,-807.46,0.00021095,2]
[368119475,1751029848062,-2217.11,0.00021095,2]
[368119476,1751029848071,-851.26,0.00021095,2]
[368119477,1751029848080,-1687.24,0.00021095,2]
[368119478,1751029848089,-464.33,0.00021095,2]
[368119479,1751029848099,-682.9,0.00021095,2]
[368119480,1751029848108,-460.0,0.00021095,2]
[368119481,1751029848116,-460.0,0.00021095,2]
[368119482,1751029848126,-460.0,0.00021095,2]
[368119483,1751029848135,-626.65,0.00021095,2]
[368119484,1751029848144,-778.42,0.00021095,2]
[368119485,1751029848154,-1807.73,0.00021095,2]
[368119486,1751029848163,-2700.44,0.00021095,2]
[368119487,1751029848172,-594.34615203,0.00021095,2]
[368119488,1751029848181,-1046.99,0.00021095,2]
[368119489,1751029848190,-460.0,0.00021095,2]
[368119490,1751029848199,-1874.32,0.00021095,2]
[368119491,1751029848209,-460.0,0.00021095,2]
[368119492,1751029848218,-460.0,0.00021095,2]
[368119493,1751029848227,-460.0,0.00021095,2]
[368119494,1751029848236,-1037.07,0.00021095,2]
[368119495,1751029848246,-460.0,0.00021095,2]
[368119496,1751029848255,-627.06,0.00021095,2]
[368119497,1751029848264,-460.0,0.00021095,2]
[368119498,1751029848273,-460.0,0.00021095,2]
[368119499,1751029848283,-460.0,0.00021095,2]
[368119500,1751029848293,-665.9,0.00021095,2]
[368119501,1751029848302,-460.0,0.00021095,2]
[368119502,1751029848310,-3786.78,0.00021095,2]
[368119503,1751029848320,-1216.38,0.00021095,2]
[368119504,1751029848330,-727.16,0.00021095,2]
[368119505,1751029848339,-3017.37,0.00021095,2]
[368119506,1751029848348,-4525.56,0.00021095,2]
[368119507,1751029848358,-460.0,0.00021095,2]
[368119508,1751029848367,-515.06,0.00021095,2]
[368119509,1751029848376,-2147.92,0.00021095,2]
[368119510,1751029848385,-954.2,0.00021095,2]
[368119511,1751029848395,-848.16,0.00021095,2]
[368119512,1751029848404,-464.02,0.00021095,2]
[368119513,1751029848413,-460.0,0.00021095,2]
[368119514,1751029848422,-5421.31,0.00021095,2]
[368119515,1751029848432,-460.0,0.00021095,2]
[368119516,1751029848442,-581.27,0.00021095,2]
[368119517,1751029848452,-683.54,0.00021095,2]
[368119518,1751029848461,-150.0,0.00021119,2]
[368119519,1751029848471,-150.0,0.00021119,2]
[368119520,1751029848480,-150.0,0.00021119,2]
[368119521,1751029848490,-10118.81432848,0.00021141,4]
[368119522,1751029848500,-794.151,0.00021211,2]
[368119523,1751029848509,-151.0,0.000213,3]
[368119524,1751029848519,-10118.81432848,0.00021348,5]
[368119525,1751029848528,-5000.0,0.00021366,2]
[368119526,1751029848538,-151.0,0.00021366,2]
[368119527,1751029848547,-158.184703,0.00021366,2]
[368119528,1751029848556,-151.0,0.00021366,2]
[368119529,1751029848566,-500.0,0.00021367,2]
[368119530,1751029848575,-500.0,0.00021367,2]
[368119531,1751029848585,-500.0,0.00021367,2]
[368119532,1751029848594,-500.0,0.00021367,2]
[368119533,1751029848603,-500.0,0.00021367,2]
[368119534,1751029848612,-500.0,0.00021367,2]
[368119535,1751029848622,-500.0,0.00021367,2]
[368119536,1751029848631,-301.18714157,0.00021367,2]
[368119537,1751029848641,-500.0,0.00021367,2]
[368119538,1751029848651,-500.0,0.00021367,2]
[368119539,1751029848660,-500.0,0.00021367,2]
[368119540,1751029848669,-500.0,0.00021367,2]
[368119541,1751029848678,-462.60851736,0.00021367,2]
[368119542,1751029848688,-500.0,0.00021367,2]
[368119543,1751029848698,-500.0,0.00021367,2]
[368119544,1751029848707,-500.0,0.00021367,2]
[368119545,1751029848716,-500.0,0.00021367,2]
[368119546,1751029848726,-500.0,0.00021367,2]
[368119547,1751029848735,-500.0,0.00021367,2]
[368119548,1751029848744,-500.0,0.00021367,2]
[368119549,1751029848754,-500.0,0.00021367,2]
[368119550,1751029848763,-200.0,0.00021367,2]
[368119551,1751029848772,-500.0,0.00021367,2]
[368119552,1751029848781,-500.0,0.00021367,2]
[368119553,1751029848791,-500.0,0.00021367,2]
[368119554,1751029848800,-500.0,0.00021367,2]
[368119555,1751029848809,-500.0,0.00021367,2]
[368119556,1751029848818,-500.0,0.00021367,2]
[368119557,1751029848828,-500.0,0.00021367,2]
[368119558,1751029848841,-160.0,0.00021368,2]
[368119559,1751029848851,-508.3,0.00021369,2]
[368119560,1751029848861,-460.0,0.00021369,2]
[368119561,1751029848870,-460.0,0.00021369,2]
[368119562,1751029848881,-460.0,0.00021369,2]
[368119563,1751029848890,-460.0,0.00021369,2]
[368119564,1751029848900,-460.0,0.00021369,2]
[368119565,1751029848911,-460.0,0.00021369,2]
[368119566,1751029848921,-460.0,0.00021369,2]
[368119567,1751029848930,-962.79,0.00021369,2]
[368119568,1751029848941,-460.0,0.00021369,2]
[368119569,1751029848950,-460.0,0.00021369,2]
[368119570,1751029848960,-199.6270523,0.00021369,2]
[368119571,1751029848970,-151.729213,0.00021369,2]
[368119572,1751029848979,-460.0,0.00021369,2]
[368119573,1751029848989,-218.43551648,0.00021369,2]
[368119574,1751029848999,-603.29127568,0.00021369,2]
[368119575,1751029849008,-460.0,0.00021369,2]
[368119576,1751029849018,-460.0,0.00021369,2]
[368119577,1751029849028,-319.55,0.00021369,2]
[368119578,1751029849037,-460.0,0.00021369,2]
[368119579,1751029849046,-151.0,0.00021369,2]
[368119580,1751029849055,-460.0,0.00021369,2]
[368119581,1751029849064,-872.16,0.00021369,2]
[368119582,1751029849074,-490.28,0.00021369,2]
[368119583,1751029849083,-460.0,0.00021369,2]
[368119584,1751029849092,-460.0,0.00021369,2]
[368119585,1751029849101,-3577.22,0.00021369,2]
[368119586,1751029849110,-676.53,0.00021369,2]
[368119587,1751029849120,-1544.03,0.00021369,2]
[368119588,1751029849130,-1861.18,0.00021369,2]
[368119589,1751029849139,-460.0,0.00021369,2]
[368119590,1751029849148,-2946.71,0.00021369,2]
[368119591,1751029849157,-351.694687,0.00021369,2]
[368119592,1751029849166,-6518.4,0.00021369,2]
[368119593,1751029849176,-460.0,0.00021369,2]
[368119594,1751029849185,-1266.37,0.00021369,2]
[368119595,1751029849195,-460.0,0.00021369,2]
[368119596,1751029849204,-460.0,0.00021369,2]
[368119597,1751029849213,-1132.2,0.00021369,2]
[368119598,1751029849223,-765.43,0.00021369,2]
[368119599,1751029849232,-460.0,0.00021369,2]
[368119600,1751029849241,-848.57,0.00021369,2]
[368119601,1751029849251,-460.0,0.00021369,2]
[368119602,1751029849261,-5598.03,0.00021369,2]
[368119603,1751029849271,-460.0,0.00021369,2]
[368119604,1751029849279,-807.46,0.00021369,2]
[368119605,1751029849287,-2217.11,0.00021369,2]
[368119606,1751029849296,-851.26,0.00021369,2]
[368119607,1751029849305,-1687.24,0.00021369,2]
[368119608,1751029849314,-464.33,0.00021369,2]
[368119609,1751029849323,-682.9,0.00021369,2]
[368119610,1751029849333,-543.97492755,0.00021369,2]
[368119611,1751029849342,-460.0,0.00021369,2]
[368119612,1751029849352,-460.0,0.00021369,2]
[368119613,1751029849362,-626.65,0.00021369,2]
[368119614,1751029849371,-778.42,0.00021369,2]
[368119615,1751029849380,-1807.73,0.00021369,2]
[368119616,1751029849389,-2700.44,0.00021369,2]
[368119617,1751029849398,-1046.99,0.00021369,2]
[368119618,1751029849408,-460.0,0.00021369,2]
[368119619,1751029849417,-1874.32,0.00021369,2]
[368119620,1751029849427,-193.09143442,0.00021369,2]
[368119621,1751029849436,-423.03,0.00021369,2]
[368119622,1751029849445,-460.0,0.00021369,2]
[368119623,1751029849455,-1037.07,0.00021369,2]
[368119624,1751029849465,-460.0,0.00021369,2]
[368119625,1751029849568,-627.06,0.00021369,2]
[368119626,1751029849578,-460.0,0.00021369,2]
[368119627,1751029849587,-460.0,0.00021369,2]
[368119628,1751029849597,-460.0,0.00021369,2]
[368119629,1751029849606,-665.9,0.00021369,2]
[368119630,1751029849615,-460.0,0.00021369,2]
[368119631,1751029849624,-3786.78,0.00021369,2]
[368119632,1751029849634,-1216.38,0.00021369,2]
[368119633,1751029849643,-727.16,0.00021369,2]
[368119634,1751029849653,-3017.37,0.00021369,2]
[368119635,1751029849663,-4525.56,0.00021369,2]
[368119636,1751029849672,-460.0,0.00021369,2]
[368119637,1751029849682,-515.06,0.00021369,2]
[368119638,1751029849692,-2147.92,0.00021369,2]
[368119639,1751029849701,-954.2,0.00021369,2]
[368119640,1751029849711,-848.16,0.00021369,2]
[368119641,1751029849720,-464.02,0.00021369,2]
[368119642,1751029849729,-460.0,0.00021369,2]
[368119643,1751029849739,-5421.31,0.00021369,2]
[368119644,1751029849750,-460.0,0.00021369,2]
[368119645,1751029849759,-683.54,0.00021369,2]
[368119646,1751029849769,-581.27,0.00021369,2]
[368119647,1751029849779,-2000.0,0.00021379,2]
[368119648,1751029849788,-151.0,0.000215,3]
[368119649,1751029849797,-10118.81432848,0.00021555,5]
[368119650,1751029849807,-965.451225,0.0002156,4]
[368119651,1751029849816,-620.0,0.00021591,2]
[368119652,1751029849826,-153.0,0.00021603,2]
[368119653,1751029849839,-153.0,0.00021603,2]
[368119654,1751029849848,-153.0,0.00021603,2]
[368119655,1751029849857,-151.0,0.00021608,4]
[368119656,1751029849867,-215.0738,0.00021639,2]
[368119657,1751029849876,-160.56438757,0.00021642,2]
[368119658,1751029849886,-151.0,0.00021643,2]
[368119659,1751029849895,-151.0,0.00021643,2]
[368119660,1751029849904,-151.0,0.00021643,2]
[368119661,1751029849914,-151.0,0.00021643,2]
[368119662,1751029849923,-151.0,0.00021643,2]
[368119663,1751029849932,-344.43810231,0.00021643,2]
[368119664,1751029849941,-460.0,0.00021643,2]
[368119665,1751029849951,-460.0,0.00021643,2]
[368119666,1751029849960,-460.0,0.00021643,2]
[368119667,1751029849969,-460.0,0.00021643,2]
[368119668,1751029849979,-460.0,0.00021643,2]
[368119669,1751029849988,-473.99,0.00021643,2]
[368119670,1751029849998,-962.79,0.00021643,2]
[368119671,1751029850008,-460.0,0.00021643,2]
[368119672,1751029850018,-460.0,0.00021643,2]
[368119673,1751029850027,-460.0,0.00021643,2]
[368119674,1751029850037,-460.0,0.00021643,2]
[368119675,1751029850046,-460.0,0.00021643,2]
[368119676,1751029850055,-460.0,0.00021643,2]
[368119677,1751029850065,-460.0,0.00021643,2]
[368119678,1751029850074,-872.16,0.00021643,2]
[368119679,1751029850087,-490.28,0.00021643,2]
[368119680,1751029850096,-384.0,0.00021643,2]
[368119681,1751029850106,-231.07,0.00021643,2]
[368119682,1751029850116,-3577.22,0.00021643,2]
[368119683,1751029850125,-676.53,0.00021643,2]
[368119684,1751029850135,-1544.03,0.00021643,2]
[368119685,1751029850145,-460.0,0.00021643,2]
[368119686,1751029850155,-1861.18,0.00021643,2]
[368119687,1751029850164,-2946.71,0.00021643,2]
[368119688,1751029850173,-6518.4,0.00021643,2]
[368119689,1751029850183,-460.0,0.00021643,2]
[368119690,1751029850192,-1266.37,0.00021643,2]
[368119691,1751029850202,-460.0,0.00021643,2]
[368119692,1751029850211,-460.0,0.00021643,2]
[368119693,1751029850220,-1132.2,0.00021643,2]
[368119694,1751029850229,-765.43,0.00021643,2]
[368119695,1751029850238,-460.0,0.00021643,2]
[368119696,1751029850247,-848.57,0.00021643,2]
[368119697,1751029850257,-460.0,0.00021643,2]
[368119698,1751029850266,-5598.03,0.00021643,2]
[368119699,1751029850275,-460.0,0.00021643,2]
[368119700,1751029850284,-807.46,0.00021643,2]
[368119701,1751029850293,-2217.11,0.00021643,2]
[368119702,1751029850303,-851.26,0.00021643,2]
[368119703,1751029850312,-1687.24,0.00021643,2]
[368119704,1751029850321,-151.0,0.00021643,2]
[368119705,1751029850331,-464.33,0.00021643,2]
[368119706,1751029850339,-682.9,0.00021643,2]
[368119707,1751029850349,-460.0,0.00021643,2]
[368119708,1751029850359,-460.0,0.00021643,2]
[368119709,1751029850368,-626.65,0.00021643,2]
[368119710,1751029850377,-778.42,0.00021643,2]
[368119711,1751029850387,-1807.73,0.00021643,2]
[368119712,1751029850396,-2700.44,0.00021643,2]
[368119713,1751029850405,-1046.99,0.00021643,2]
[368119714,1751029850414,-460.0,0.00021643,2]
[368119715,1751029850423,-1874.32,0.00021643,2]
[368119716,1751029850431,-1059.846132,0.00021643,2]
[368119717,1751029850440,-1059.846132,0.00021643,2]
[368119718,1751029850450,-460.0,0.00021643,2]
[368119719,1751029850459,-1037.07,0.00021643,2]
[368119720,1751029850469,-460.0,0.00021643,2]
[368119721,1751029850478,-627.06,0.00021643,2]
[368119722,1751029850487,-315.45784486,0.00021643,2]
[368119723,1751029850496,-460.0,0.00021643,2]
[368119724,1751029850505,-460.0,0.00021643,2]
[368119725,1751029850515,-665.9,0.00021643,2]
[368119726,1751029850525,-460.0,0.00021643,2]
[368119727,1751029850534,-3786.78,0.00021643,2]
[368119728,1751029850543,-1216.38,0.00021643,2]
[368119729,1751029850552,-727.16,0.00021643,2]
[368119730,1751029850561,-3017.37,0.00021643,2]
[368119731,1751029850571,-4525.56,0.00021643,2]
[368119732,1751029850580,-460.0,0.00021643,2]
[368119733,1751029850589,-515.06,0.00021643,2]
[368119734,1751029850599,-2147.92,0.00021643,2]
[368119735,1751029850608,-954.2,0.00021643,2]
[368119736,1751029850618,-848.16,0.00021643,2]
[368119737,1751029850627,-464.02,0.00021643,2]